lending/lending_fUSD_20241214
["ID","MTS","AMOUNT","RATE_DAILY","PERIOD"]
[345368152,1734196247719,-500.0,0.00021095,3]
[345368153,1734196247728,-500.0,0.00021095,3]
[345368154,1734196247737,-500.0,0.00021095,3]
[345368155,1734196247746,-500.0,0.00021095,3]
[345368156,1734196247755,-500.0,0.00021095,3]
[345368157,1734196247765,-500.0,0.00021095,3]
[345368158,1734196247774,-500.0,0.00021095,3]
[345368159,1734196247783,-293.97009308,0.00021095,3]
[345368160,1734196247792,-500.0,0.00021095,3]
[345368161,1734196247801,-500.0,0.00021095,3]
[345368162,1734196247810,-621.47,0.00021095,3]
[345368163,1734196247820,-500.0,0.00021095,3]
[345368164,1734196247829,-261.9954917,0.00021095,3]
[345368165,1734196247838,-455.82927554,0.00021095,3]
[345368166,1734196247847,-502.40834536,0.00021095,3]
[345368167,1734196247856,-500.0,0.00021095,3]
[345368168,1734196247865,-500.0,0.00021095,3]
[345368169,1734196247874,-500.0,0.00021095,3]
[345368170,1734196247883,-500.0,0.00021095,3]
[345368171,1734196247893,-500.0,0.00021095,3]
[345368172,1734196247902,-500.0,0.00021095,3]
[345368173,1734196247911,-500.0,0.00021095,3]
[345368174,1734196247921,-500.0,0.00021095,3]
[345368175,1734196247931,-500.0,0.00021095,3]
[345368176,1734196247941,-556.40912794,0.00021095,3]
[345368177,1734196247950,-500.0,0.00021095,3]
[345368178,1734196247960,-500.0,0.00021095,3]
[345368179,1734196247969,-500.0,0.00021095,3]
[345368180,1734196247978,-500.0,0.00021095,3]
[345368181,1734196247987,-500.0,0.00021095,3]
[345368182,1734196247995,-500.0,0.00021095,3]
[345368183,1734196248006,-500.0,0.00021095,3]
[345368184,1734196248017,-500.0,0.00021095,3]
[345368185,1734196248027,-500.0,0.00021095,3]
[345368186,1734196248036,-500.0,0.00021095,3]
[345368187,1734196248045,-500.0,0.00021095,3]
[345368188,1734196248054,-500.0,0.00021095,3]
[345368189,1734196248063,-500.0,0.00021095,3]
[345368190,1734196248072,-332.53088885,0.00021095,3]
[345368191,1734196248082,-500.0,0.00021095,3]
[345368192,1734196248091,-500.0,0.00021095,3]
[345368193,1734196248100,-500.0,0.00021095,3]
[345368194,1734196248109,-500.0,0.00021095,3]
[345368195,1734196248119,-500.0,0.00021095,3]
[345368196,1734196248128,-500.0,0.00021095,3]
[345368197,1734196248137,-500.0,0.00021095,3]
[345368198,1734196248146,-500.0,0.00021095,3]
[345368199,1734196248155,-501.96834836,0.00021095,3]
[345368200,1734196248165,-500.0,0.00021095,3]
[345368201,1734196248174,-349.42995757,0.00021095,3]
[345368202,1734196248183,-500.0,0.00021095,3]
[345368203,1734196248192,-500.0,0.00021095,3]
[345368204,1734196248202,-500.0,0.00021095,3]
[345368205,1734196248211,-500.0,0.00021095,3]
[345368206,1734196248220,-500.0,0.00021095,3]
[345368207,1734196248229,-500.0,0.00021095,3]
[345368208,1734196248238,-500.0,0.00021095,3]
[345368209,1734196248247,-500.0,0.00021095,3]
[345368210,1734196248256,-500.0,0.00021095,3]
[345368211,1734196248265,-500.0,0.00021095,3]
[345368212,1734196248275,-500.0,0.00021095,3]
[345368213,1734196248284,-500.0,0.00021095,3]
[345368214,1734196248293,-500.0,0.00021095,3]
[345368215,1734196248302,-500.0,0.00021095,3]
[345368216,1734196248312,-500.0,0.00021095,3]
[345368217,1734196248321,-500.0,0.00021095,3]
[345368218,1734196248330,-617.17659181,0.00021095,3]
[345368219,1734196248340,-500.0,0.00021095,3]
[345368220,1734196248350,-500.0,0.00021095,3]
[345368221,1734196248359,-501.59,0.00021095,3]
[345368222,1734196248368,-500.0,0.00021095,3]
[345368223,1734196248378,-529.28,0.00021095,3]
[345368224,1734196248388,-500.0,0.00021095,3]
[345368225,1734196248397,-500.0,0.00021095,3]
[345368226,1734196248406,-500.0,0.00021095,3]
[345368227,1734196248416,-500.0,0.00021095,3]
[345368228,1734196248425,-500.0,0.00021095,3]
[345368229,1734196248436,-500.0,0.00021095,3]
[345368230,1734196248446,-151.28513503,0.00021095,3]
[345368231,1734196352275,1797.819177,0.0002276,120]
[345368232,1734196396629,200.0,0.00022127,120]
[345368233,1734196624410,174.9,0.00013699,2]
[345368234,1734196754494,-152.19,0.00018149,2]
[345368235,1734196754516,-1252.56,0.00018149,2]
[345368237,1734196915727,170.0,0.00010137,2]
[345368238,1734196993744,450.0,0.00013,2]
[345368239,1734196994841,500.0,0.00015,2]
[345368240,1734196995929,550.0,0.00017,2]
[345368241,1734197108364,318998.38311809,0.0001,2]
[345368242,1734197108415,13771679.0816031,0.0001,2]
[345368243,1734197131820,6459.21448866,0.0001,2]
[345368245,1734197275676,52920.70433475,0.0001,2]
[345368246,1734197276447,22615.38384403,0.0001,2]
[345368248,1734197316967,2607.89215924,0.0001,2]
[345368249,1734197319584,8018.8183043,0.0001,2]
[345368257,1734197353590,-5097.01822976,0.0001305,2]
[345368258,1734197353612,-1000.0,0.000135,2]
[345368259,1734197353633,-9823.82269273,0.0001439,2]
[345368260,1734197353655,-2623.891369,0.00015,2]
[345368261,1734197353675,-20502.35756462,0.00015,2]
[345368262,1734197357187,-12534.78540729,0.00015,2]
[345368263,1734197357207,-500.0,0.00015,2]
[345368264,1734197357228,-14599.81123271,0.00015,2]
[345368265,1734197360238,-251.03031203,0.00015,2]
[345368266,1734197360258,-961.61,0.00015,2]
[345368267,1734197360278,-2658.12272397,0.00015,2]
[345368268,1734197363146,-32166.40213824,0.00015,2]
[345368269,1734197363166,-483.6820152,0.000154,2]
[345368270,1734197363196,-15822.89709018,0.000157,2]
[345368271,1734197367985,405.42271999,0.000149,2]
[345368293,1734197431441,-150.0,0.00016308,2]
[345368294,1734197431454,-502.85805185,0.00017,5]
[345368295,1734197431502,-525.26359707,0.00017,5]
[345368296,1734197431513,-1252.84598585,0.00017,5]
[345368297,1734197431525,-513.4653085,0.00017,5]
[345368298,1734197431534,-3334.91532517,0.00017678,2]
[345368299,1734197431619,-576.02,0.00017678,2]
[345368300,1734197431631,-616.5,0.00017678,2]
[345368301,1734197431643,-20547.46025242,0.00017678,2]
[345368302,1734197431653,-207.51,0.00018677,2]
[345368303,1734197431663,-157.61,0.0001878,2]
[345368304,1734197431672,-200.0,0.0001879,2]
[345368305,1734197431682,-14729.46713267,0.00018843,2]
[345368306,1734197431696,-400.78,0.00018843,2]
[345368307,1734197431747,-527.77286733,0.00018843,2]
[345368308,1734197431757,-200.0,0.00018883,2]
[345368309,1734197431766,-285.73963267,0.00018901,2]
[345368310,1734197431806,-656.37598735,0.00018901,2]
[345368311,1734197431817,-538.33437998,0.00018901,2]
[345368312,1734197431829,-153.0,0.00018913,2]
[345368313,1734197431838,-153.0,0.00018913,2]
[345368314,1734197431847,-153.0,0.00018913,2]
[345368315,1734197431856,-153.0,0.00018913,2]
[345368316,1734197431865,-153.0,0.00018913,2]
[345368317,1734197431874,-153.0,0.00018913,2]
[345368318,1734197431883,-498.0,0.00018999,2]
[345368319,1734197431893,-600.0,0.00019,2]
[345368320,1734197431902,-21716.31324568,0.00019,2]
[345368321,1734197431910,-207.51,0.00019368,2]
[345368322,1734197431919,-3148.0,0.000194,2]
[345368323,1734197431928,-227.05,0.0001954,2]
[345368324,1734197431938,-6101.75,0.00019544,2]
[345368325,1734197431946,-723.68,0.00019546,2]
[345368326,1734197431955,-1916.23,0.0001964,2]
[345368327,1734197431964,-153.0,0.00019735,2]
[345368328,1734197431974,-250.0,0.00019739,2]
[345368329,1734197431983,-1000.0,0.00019782,2]
[345368330,1734197431991,-651.04,0.00019825,2]
[345368331,1734197432000,-200.0,0.00019834,2]
[345368332,1734197432010,-250.0,0.00019862,2]
[345368333,1734197432019,-159.67,0.00019928,2]
[345368334,1734197432028,-1000.0,0.0002,5]
[345368335,1734197432037,-29651.54061042,0.0002,2]
[345368336,1734197432056,-255.97559429,0.0002,2]
[345368337,1734197432086,-665.0,0.0002,2]
[345368345,1734197437363,-816.38546138,0.0002,2]
[345368346,1734197437423,-3334.97106757,0.0002,2]
[345368347,1734197437635,-39145.98235728,0.0002,2]
[345368348,1734197437649,-42114.46682742,0.0002,2]
[345368349,1734197437698,-154165.18386947,0.0002,2]
[345368350,1734197437707,-308.799,0.0002004,2]
[345368351,1734197437718,-207.51,0.0002006,2]
[345368352,1734197437729,-155.81,0.00020134,30]
[345368353,1734197437740,-1014.53,0.00020169,2]
[345368354,1734197437750,-227.05,0.00020263,2]
[345368355,1734197437759,-364.58,0.00020339,2]
[345368356,1734197437769,-150.0,0.00020339,2]
[345368357,1734197437780,-150.0,0.00020339,2]
[345368358,1734197437792,-435.63,0.00020339,2]
[345368359,1734197437803,-150.0,0.00020339,2]
[345368360,1734197437813,-435.63,0.00020339,2]
[345368361,1734197437822,-150.0,0.00020339,2]
[345368362,1734197437831,-150.0,0.00020339,2]
[345368363,1734197437841,-364.58,0.00020339,2]
[345368364,1734197437850,-380.25,0.00020339,2]
[345368365,1734197437859,-150.0,0.00020339,2]
[345368366,1734197437868,-435.24,0.00020339,2]
[345368367,1734197437877,-150.0,0.00020339,2]
[345368368,1734197437887,-1295.64,0.00020339,2]
[345368369,1734197437897,-150.0,0.00020339,2]
[345368370,1734197437906,-150.0,0.00020339,2]
[345368371,1734197437916,-150.0,0.00020339,2]
[345368372,1734197437927,-364.58,0.00020339,2]
[345368373,1734197437938,-150.0,0.00020339,2]
[345368374,1734197437947,-364.18,0.00020339,2]
[345368375,1734197437956,-150.0,0.00020339,2]
[345368376,1734197437966,-1252.56,0.00020413,2]
[345368377,1734197437975,-1000.0,0.000205,5]
[345368378,1734197437985,-150.0,0.00020548,5]
[345368379,1734197437994,-781.44,0.00020575,2]
[345368380,1734197438003,-879.51,0.00020575,2]
[345368381,1734197438012,-769.16,0.00020575,2]
[345368382,1734197438021,-769.16,0.00020575,2]
[345368383,1734197438031,-768.74,0.00020575,2]
[345368384,1734197438040,-1950.44,0.00020669,2]
[345368385,1734197438049,-871.12,0.00020669,2]
[345368386,1734197438058,-435.5,0.00020669,2]
[345368387,1734197438067,-250.99,0.000207,5]
[345368389,1734197438077,-300.0,0.000207,7]
[345368391,1734197438086,-207.51,0.00020751,2]
[345368393,1734197438096,-324.71142506,0.0002076,2]
[345368395,1734197438105,-1500.0,0.0002078,2]
[345368397,1734197438115,-1000.0,0.0002078,2]
[345368399,1734197438125,-500.0,0.00020795,2]
[345368401,1734197438135,-600.0,0.000208,7]
[345368403,1734197438145,-975.55,0.00020849,2]
[345368405,1734197438155,-150.0,0.00020849,2]
[345368407,1734197438164,-435.63,0.00020849,2]
[345368408,1734197438174,-150.0,0.00020849,2]
[345368409,1734197438183,-150.0,0.00020849,2]
[345368410,1734197438193,-364.58,0.00020849,2]
[345368411,1734197438203,-1988.168,0.0002089,2]
[345368412,1734197438212,-164.68889792,0.0002089,2]
[345368413,1734197438221,-5000.0,0.000209,2]
[345368414,1734197438231,-22892.97078281,0.000209,2]
[345368415,1734197438240,-900.0,0.000209,7]
[345368416,1734197438250,-2674.34722404,0.000209,2]
[345368417,1734197438259,-227.05,0.00020986,2]
[345368418,1734197438268,-986.42,0.00020995,2]
[345368419,1734197438277,-1000.0,0.00021,5]
[345368420,1734197438287,-13319.90588669,0.00021,2]
[345368421,1734197438299,-607.92732,0.00021,2]
[345368422,1734197438322,-252.90102083,0.00021,2]
[345368428,1734197439335,-730.8865,0.000199,2]
[345368429,1734197439345,-7124.46925124,0.00021,2]
[345368430,1734197439615,-40245.80611913,0.00021,2]
[345368431,1734197439628,-1181.55,0.00021,2]
[345368432,1734197439677,-276525.44040211,0.00021,2]
[345368433,1734197439687,-650.0,0.00021,2]
[345368434,1734197439696,-1005.73,0.00021021,2]
[345368435,1734197439705,-22892.97078281,0.00021033,2]
[345368436,1734197439715,-2674.34722396,0.00021033,2]
[345368437,1734197439724,-324.71142506,0.00021033,2]
[345368438,1734197439733,-2021.09728667,0.00021079,2]
[345368439,1734197439742,-168433.50186645,0.0002108,2]
[345368440,1734197439751,-15655.5062519,0.0002109,2]
[345368441,1734197439762,-4576.3535707,0.00021092,2]
[345368442,1734197439771,-884.0,0.00021095,2]
[345368443,1734197439780,-500.0,0.00021095,3]
[345368444,1734197439790,-500.0,0.00021095,3]
[345368445,1734197439799,-500.0,0.00021095,3]
[345368446,1734197439808,-500.0,0.00021095,3]
[345368447,1734197439818,-500.0,0.00021095,3]
[345368448,1734197439827,-500.0,0.00021095,3]
[345368449,1734197439836,-500.0,0.00021095,3]
[345368450,1734197439846,-500.0,0.00021095,3]
[345368451,1734197439855,-500.0,0.00021095,3]
[345368453,1734197439863,-500.0,0.00021095,3]
[345368455,1734197439872,-500.0,0.00021095,3]
[345368456,1734197439881,-500.0,0.00021095,3]
[345368457,1734197439891,-500.0,0.00021095,3]
[345368458,1734197439900,-500.0,0.00021095,3]
[345368459,1734197439910,-500.0,0.00021095,3]
[345368460,1734197439919,-500.0,0.00021095,3]
[345368461,1734197439927,-500.0,0.00021095,3]
[345368462,1734197439936,-500.0,0.00021095,3]
[345368463,1734197439945,-500.0,0.00021095,3]
[345368464,1734197439954,-500.0,0.00021095,3]
[345368465,1734197439963,-500.0,0.00021095,3]
[345368466,1734197439971,-500.0,0.00021095,3]
[345368467,1734197439981,-500.0,0.00021095,3]
[345368468,1734197439990,-500.0,0.00021095,3]
[345368469,1734197439999,-500.0,0.00021095,3]
[345368470,1734197440008,-500.0,0.00021095,3]
[345368471,1734197440017,-500.0,0.00021095,3]
[345368472,1734197440026,-500.0,0.00021095,3]
[345368473,1734197440035,-500.0,0.00021095,3]
[345368474,1734197440044,-500.0,0.00021095,3]
[345368475,1734197440053,-500.0,0.00021095,3]
[345368476,1734197440062,-500.0,0.00021095,3]
[345368477,1734197440071,-500.0,0.00021095,3]
[345368478,1734197440080,-500.0,0.00021095,3]
[345368479,1734197440088,-500.0,0.00021095,3]
[345368480,1734197440098,-500.0,0.00021095,3]
[345368481,1734197440106,-500.0,0.00021095,3]
[345368482,1734197440115,-500.0,0.00021095,3]
[345368483,1734197440124,-500.0,0.00021095,3]
[345368484,1734197440133,-500.0,0.00021095,3]
[345368485,1734197440142,-500.0,0.00021095,3]
[345368486,1734197440152,-500.0,0.00021095,3]
[345368487,1734197440161,-500.0,0.00021095,3]
[345368488,1734197440171,-500.0,0.00021095,3]
[345368489,1734197440181,-500.0,0.00021095,3]
[345368490,1734197440190,-398.87769102,0.00021095,3]
[345368491,1734197440199,-500.0,0.00021095,3]
[345368492,1734197440209,-500.0,0.00021095,3]
[345368493,1734197440218,-500.0,0.00021095,3]
[345368494,1734197440228,-500.0,0.00021095,3]
[345368495,1734197440237,-500.0,0.00021095,3]
[345368496,1734197440246,-500.0,0.00021095,3]
[345368497,1734197440256,-500.0,0.00021095,3]
[345368498,1734197440265,-500.0,0.00021095,3]
[345368499,1734197440274,-500.0,0.00021095,3]
[345368500,1734197440285,-500.0,0.00021095,3]
[345368501,1734197440295,-500.0,0.00021095,3]
[345368502,1734197440303,-500.0,0.00021095,3]
[345368503,1734197440315,-500.0,0.00021095,3]
[345368504,1734197440325,-500.0,0.00021095,3]
[345368505,1734197440335,-500.0,0.00021095,3]
[345368506,1734197440346,-500.0,0.00021095,3]
[345368507,1734197440355,-500.0,0.00021095,3]
[345368508,1734197440365,-500.0,0.00021095,3]
[345368509,1734197440374,-588.12,0.00021095,3]
[345368510,1734197440383,-500.0,0.00021095,3]
[345368511,1734197440393,-500.0,0.00021095,3]
[345368512,1734197440402,-500.0,0.00021095,3]
[345368513,1734197440411,-500.0,0.00021095,3]
[345368514,1734197440421,-500.0,0.00021095,3]
[345368515,1734197440430,-501.83,0.00021095,3]
[345368516,1734197440439,-500.0,0.00021095,3]
[345368517,1734197440448,-500.0,0.00021095,3]
[345368518,1734197440457,-523.56,0.00021095,3]
[345368519,1734197440467,-500.0,0.00021095,3]
[345368520,1734197440476,-500.0,0.00021095,3]
[345368521,1734197440485,-369.66001829,0.00021095,3]
[345368522,1734197440494,-194.11,0.00021095,3]
[345368523,1734197440503,-500.0,0.00021095,3]
[345368524,1734197440512,-500.0,0.00021095,3]
[345368525,1734197440522,-500.0,0.00021095,3]
[345368526,1734197440531,-500.0,0.00021095,3]
[345368527,1734197440540,-503.03795039,0.00021095,3]
[345368528,1734197440549,-500.0,0.00021095,3]
[345368529,1734197440558,-500.0,0.00021095,3]
[345368530,1734197440567,-506.46406948,0.00021095,3]
[345368531,1734197440578,-554.30483031,0.00021095,3]
[345368532,1734197440588,-500.0,0.00021095,3]
[345368533,1734197440598,-500.0,0.00021095,3]
[345368534,1734197440607,-500.0,0.00021095,3]
[345368535,1734197440616,-500.0,0.00021095,3]
[345368536,1734197440626,-500.0,0.00021095,3]
[345368537,1734197440635,-500.0,0.00021095,3]
[345368538,1734197440644,-500.0,0.00021095,3]
[345368539,1734197440656,-500.0,0.00021095,3]
[345368540,1734197440667,-360.30607495,0.00021095,3]
[345368541,1734197440676,-500.0,0.00021095,3]
[345368542,1734197440685,-500.0,0.00021095,3]
[345368543,1734197440694,-500.0,0.00021095,3]
[345368544,1734197440704,-500.0,0.00021095,3]
[345368545,1734197440713,-1000.0,0.00021095,2]
[345368546,1734197440722,-353.8,0.00021095,3]
[345368547,1734197440731,-500.0,0.00021095,3]
[345368548,1734197440741,-500.0,0.00021095,3]
[345368549,1734197440751,-500.0,0.00021095,3]
[345368550,1734197440760,-500.0,0.00021095,3]
[345368551,1734197440769,-500.0,0.00021095,3]
[345368552,1734197440779,-500.0,0.00021095,3]
[345368553,1734197440788,-500.0,0.00021095,3]
[345368554,1734197440798,-500.0,0.00021095,3]
[345368555,1734197440808,-500.0,0.00021095,3]
[345368556,1734197440817,-522.20567616,0.00021095,3]
[345368557,1734197440828,-500.0,0.00021095,3]
[345368558,1734197440837,-500.0,0.00021095,3]
[345368559,1734197440847,-500.0,0.00021095,3]
[345368560,1734197440856,-427.75772059,0.00021095,3]
[345368561,1734197440871,-72.24227941,0.00021095,3]
[345368562,1734197440881,-500.0,0.00021095,3]
[345368563,1734197440890,-500.0,0.00021095,3]
[345368564,1734197440899,-500.0,0.00021095,3]
[345368565,1734197440909,-500.0,0.00021095,3]
[345368566,1734197440918,-219.8644261,0.00021095,3]
[345368567,1734197440927,-500.0,0.00021095,3]
[345368568,1734197440936,-500.0,0.00021095,3]
[345368569,1734197440945,-500.0,0.00021095,3]
[345368570,1734197440954,-568.63207286,0.00021095,3]
[345368571,1734197440964,-193.44,0.00021095,3]
[345368572,1734197440974,-500.0,0.00021095,3]
[345368573,1734197440984,-500.0,0.00021095,3]
[345368574,1734197440993,-500.0,0.00021095,3]
[345368575,1734197441004,-500.0,0.00021095,3]
[345368576,1734197441013,-598.46,0.00021095,3]
[345368577,1734197441023,-500.0,0.00021095,3]
[345368578,1734197441033,-500.0,0.00021095,3]
[345368579,1734197441042,-500.0,0.00021095,3]
[345368580,1734197441051,-585.9187717,0.00021095,3]
[345368581,1734197441061,-500.0,0.00021095,3]
[345368582,1734197441070,-500.0,0.00021095,3]
[345368583,1734197441079,-500.0,0.00021095,3]
[345368584,1734197441088,-500.0,0.00021095,3]
[345368585,1734197441097,-500.0,0.00021095,3]
[345368586,1734197441106,-500.0,0.00021095,3]
[345368587,1734197441116,-500.0,0.00021095,3]
[345368588,1734197441125,-616.5,0.00021095,3]
[345368589,1734197441134,-500.0,0.00021095,3]
[345368590,1734197441143,-500.0,0.00021095,3]
[345368591,1734197441152,-500.0,0.00021095,3]
[345368592,1734197441161,-500.0,0.00021095,3]
[345368593,1734197441170,-500.0,0.00021095,3]
[345368594,1734197441179,-500.0,0.00021095,3]
[345368595,1734197441188,-500.0,0.00021095,3]
[345368596,1734197441197,-500.0,0.00021095,3]
[345368597,1734197441206,-500.0,0.00021095,3]
[345368598,1734197441215,-500.0,0.00021095,3]
[345368599,1734197441224,-500.0,0.00021095,3]
[345368600,1734197441232,-500.0,0.00021095,3]
[345368601,1734197441241,-500.0,0.00021095,3]
[345368602,1734197441250,-500.0,0.00021095,3]
[345368603,1734197441259,-500.0,0.00021095,3]
[345368604,1734197441269,-500.0,0.00021095,3]
[345368605,1734197441279,-500.0,0.00021095,3]
[345368606,1734197441289,-500.0,0.00021095,3]
[345368607,1734197441298,-500.0,0.00021095,3]
[345368608,1734197441307,-500.0,0.00021095,3]
[345368609,1734197441317,-500.0,0.00021095,3]
[345368610,1734197441326,-500.0,0.00021095,3]
[345368611,1734197441335,-500.0,0.00021095,3]
[345368612,1734197441344,-500.0,0.00021095,3]
[345368613,1734197441356,-500.0,0.00021095,3]
[345368614,1734197441366,-500.0,0.00021095,3]
[345368615,1734197441377,-500.0,0.00021095,3]
[345368616,1734197441386,-500.0,0.00021095,3]
[345368617,1734197441396,-500.0,0.00021095,3]
[345368618,1734197441405,-500.0,0.00021095,3]
[345368619,1734197441414,-500.0,0.00021095,3]
[345368620,1734197441423,-500.0,0.00021095,3]
[345368621,1734197441432,-500.0,0.00021095,3]
[345368622,1734197441441,-500.0,0.00021095,3]
[345368623,1734197441450,-500.0,0.00021095,3]
[345368624,1734197441459,-639.99704956,0.00021095,3]
[345368625,1734197441469,-500.0,0.00021095,3]
[345368626,1734197441478,-500.0,0.00021095,3]
[345368627,1734197441487,-500.0,0.00021095,3]
[345368629,1734197441496,-583.49,0.00021095,3]
[345368630,1734197441505,-500.0,0.00021095,3]
[345368631,1734197441514,-500.0,0.00021095,3]
[345368632,1734197441523,-500.0,0.00021095,3]
[345368633,1734197441532,-500.0,0.00021095,3]
[345368634,1734197441540,-500.0,0.00021095,3]
[345368635,1734197441549,-126.06428565,0.00021095,3]
[345368645,1734197442433,-373.93571435,0.00021095,3]
[345368646,1734197442442,-500.0,0.00021095,3]
[345368647,1734197442451,-243.49989357,0.00021095,3]
[345368648,1734197442460,-500.0,0.00021095,3]
[345368649,1734197442469,-500.0,0.00021095,3]
[345368650,1734197442479,-500.0,0.00021095,3]
[345368651,1734197442489,-389.2047015,0.00021095,3]
[345368652,1734197442498,-500.0,0.00021095,3]
[345368653,1734197442507,-501.98586276,0.00021095,3]
[345368654,1734197442516,-500.0,0.00021095,3]
[345368655,1734197442526,-500.0,0.00021095,3]
[345368656,1734197442535,-123.90523972,0.00021095,3]
[345368657,1734197442546,-376.09476028,0.00021095,3]
[345368658,1734197442555,-1000.0,0.00021095,3]
[345368659,1734197442564,-500.0,0.00021095,3]
[345368660,1734197442573,-108.67523964,0.00021095,3]
[345368661,1734197442639,-1107.05476036,0.00021095,3]
[345368662,1734197442648,-212.19036731,0.00021095,3]
[345368663,1734197442662,-287.80963269,0.00021095,3]
[345368664,1734197442676,-1215.73,0.00021095,3]
[345368665,1734197442685,-1215.73,0.00021095,3]
[345368666,1734197442694,-1215.73,0.00021095,3]
[345368667,1734197442704,-1136.50036731,0.00021095,3]
[345368668,1734197442715,-1905.69963269,0.00021095,3]
[345368669,1734197442725,-500.0,0.00021095,3]
[345368670,1734197442734,-500.0,0.00021095,3]
[345368671,1734197442744,-613.71,0.00021095,3]
[345368672,1734197442753,-613.71,0.00021095,3]
[345368673,1734197442763,-613.71,0.00021095,3]
[345368674,1734197442773,-613.71,0.00021095,3]
[345368675,1734197442782,-500.0,0.00021095,3]
[345368676,1734197442791,-500.0,0.00021095,3]
[345368677,1734197442800,-500.0,0.00021095,3]
[345368678,1734197442810,-500.0,0.00021095,3]
[345368679,1734197442819,-500.0,0.00021095,3]
[345368680,1734197442829,-364.11036751,0.00021095,3]
[345368681,1734197442846,-224.61963249,0.00021095,3]
[345368682,1734197442855,-500.0,0.00021095,3]
[345368683,1734197442864,-500.0,0.00021095,3]
[345368684,1734197442874,-500.0,0.00021095,3]
[345368685,1734197442883,-500.0,0.00021095,3]
[345368686,1734197442892,-500.0,0.00021095,3]
[345368688,1734197442901,-500.0,0.00021095,3]
[345368690,1734197442910,-500.0,0.00021095,3]
[345368692,1734197442919,-502.89620375,0.00021095,3]
[345368694,1734197442929,-500.0,0.00021095,3]
[345368695,1734197442938,-466.79210851,0.00021095,3]
[345368696,1734197442950,-33.20789149,0.00021095,3]
[345368697,1734197442959,-500.0,0.00021095,3]
[345368699,1734197442968,-281.27461614,0.00021095,3]
[345368711,1734197445295,-218.72538386,0.00021095,3]
[345368712,1734197445304,-575.88,0.00021095,3]
[345368713,1734197445314,-201.719517,0.00021095,3]
[345368714,1734197445326,-298.280483,0.00021095,3]
[345368715,1734197445335,-575.88,0.00021095,3]
[345368716,1734197445345,-459.839517,0.00021095,3]
[345368717,1734197445356,-40.160483,0.00021095,3]
[345368718,1734197445365,-575.88,0.00021095,3]
[345368719,1734197445382,-575.88,0.00021095,3]
[345368720,1734197445392,-104.14906884,0.00021095,3]
[345368721,1734197445403,-398.00321792,0.00021095,3]
[345368722,1734197445412,-500.0,0.00021095,3]
[345368723,1734197445421,-500.0,0.00021095,3]
[345368724,1734197445430,-500.0,0.00021095,3]
[345368725,1734197445439,-500.0,0.00021095,3]
[345368726,1734197445448,-500.0,0.00021095,3]
[345368727,1734197445458,-500.0,0.00021095,3]
[345368728,1734197445467,-500.0,0.00021095,3]
[345368729,1734197445476,-500.0,0.00021095,3]
[345368730,1734197445485,-500.0,0.00021095,3]
[345368731,1734197445494,-500.0,0.00021095,3]
[345368732,1734197445504,-500.0,0.00021095,3]